Cogmind - Beta 16 @@@ ROGUE MODE // 2025.12.16 @ 14:12:52 Player: ILikeVoltron Result: Self-destructed Performance ------------- Evolutions (2) 1000 Regions Visited (3) 600 Robots Destroyed (51) 255 Value Destroyed (929) 929 Prototype IDs (3) 60 Alien Tech Used (0) 0 Bonus (0) 0 TOTAL SCORE: 2844 Bonus ------- None Cogmind --------- Core Integrity 401/550 Matter 62/300 Energy 100/100 System Corruption 0% Temperature Cool (9) Movement Core (200) Ox3 Location -8/Materials Parts ------- > --- POWER (1) -------- (None) > --- PROPULSION (3) --- (None) > --- UTILITY (4) ------ Medium Storage Unit > --- WEAPON (3) ------- (None) > --- INVENTORY (10) --- Light Ion Engine Wheel Improved Heat Sink High-capacity Storage Unit Seismic Detector Improved Assault Rifle Improved Datajack Mining Laser Heavy Mace Peak State ------------ > --- POWER ------------ Improved Ion Engine > --- PROPULSION ------- Aluminum Leg Aluminum Leg Improved Aluminum Leg > --- UTILITY ---------- Medium Storage Unit Heavy Armor Plating Shield Generator > --- WEAPON ----------- Autogun Improved Assault Rifle Improved Datajack > --- INVENTORY -------- Improved Heat Sink High-capacity Storage Unit Seismic Detector Grenade Launcher Mining Laser Heavy Mace [Rating: 24] Favorites ----------- Power Improved Ion Engine Engine Improved Ion Engine Propulsion Aluminum Leg Leg Aluminum Leg Utility Small Storage Unit Device Shield Generator Storage Small Storage Unit Protection Heavy Armor Plating Weapon Light Assault Rifle Energy Gun Small Laser Ballistic Gun Light Assault Rifle Launcher Grenade Launcher Special Weapon Mining Laser Special Melee Weapon Improved Datajack Build | -11 -10 -9 -8 ------- Run | Yrd Mat Mat Mat Slots Evolved 4 | . . 2 2 Power . | . . . . Propulsion 1 | . . . 1 Utility 2 | . . 2 . Weapon 1 | . . . 1 Parts Attached 33 | 2 8 20 3 Power 5 | . 1 4 . Engine 5 | . 1 4 . Core . | . . . . Reactor . | . . . . Propulsion 3 | . 2 . 1 Treads . | . . . . Leg 3 | . 2 . 1 Wheel . | . . . . Hover . | . . . . Flight . | . . . . Utility 13 | 1 2 10 . Device 5 | 1 2 2 . Storage 4 | . . 4 . Processor . | . . . . Hackware . | . . . . Protection 4 | . . 4 . Artifact . | . . . . Weapon 12 | 1 3 6 2 Energy Gun . | . . . . Energy Cannon . | . . . . Ballistic Gun 8 | 1 1 5 1 Ballistic Cannon . | . . . . Launcher 1 | . . . 1 Special Weapon 1 | . 1 . . Impact Weapon . | . . . . Slashing Weapon . | . . . . Piercing Weapon . | . . . . Special Melee Weapon 2 | . 1 1 . Unidentified Prototypes 1 | . . 1 . Parts Lost 10 | . 2 1 7 Power 2 | . 1 . 1 Propulsion 2 | . . . 2 Utility 3 | . 1 . 2 Weapon 3 | . . 1 2 Highest Loss Streak 5 | . 1 1 5 To Critical Strikes . | . . . . Average Backups 7 | 7 7 7 7 Power . | 1 . . . Propulsion 1 | 3 2 1 . Utility 2 | . 2 3 3 Weapon 2 | 1 2 2 2 Tool/Special . | . . . . Unused Backups 20 | 7 6 4 3 Power 3 | 1 1 . 1 Propulsion 9 | 3 4 1 1 Utility 1 | 1 . . . Weapon 7 | 2 1 3 1 Tool/Special . | . . . . Average Slot Usage (%) 93 | . 98 94 71 Engine 11 | . 14 11 7 Leg 23 | . 28 22 18 Device 13 | . 13 14 5 Storage 11 | . 14 11 9 Protection 9 | . . 13 7 Ballistic Gun 20 | . 25 18 16 Special Melee Weapon 2 | . . 2 3 Peak Build Rating 24 | 9 10 19 24 Average Rating 13 | 7 8 16 19 On Entrance 10 | 6 9 8 19 Avg Prop Armor Cover (%) . | . . . . Naked Turns . | . . . . Heaviest Build 50 | 13 13 50 43 Greatest Support 33 | 20 20 20 33 Greatest Overweight (x) 4 | . . 2 4 Average Overweight (x) . | . . . 1 Largest Inventory Capacity 20 | 8 8 20 10 Average Capacity 8 | 8 8 8 10 Most Carried 9 | 8 8 8 9 Average Carried 7 | 7 7 7 7 Final Capacity 10 | 8 8 10 10 Final Carried 9 | 8 8 8 9 Class Distribution -------------------- 84% | Mutant 11% | Scavenger-Mutant 3% | Tank Dominant Class ---------------- Mutant | -10/Materials Mutant | -9/Materials Tank | -8/Materials Resources | -11 -10 -9 -8 ----------- Run | Yrd Mat Mat Mat Matter Collected 1053 | 284 212 501 56 Remotely . | . . . . Salvage Created 1465 | 227 291 647 300 Parts 99 | 23 17 39 20 Haulers Intercepted 3 | . . 2 1 Recyclers Shooed 2 | . . 2 . Parts Field Recycled . | . . . . Retrieved Matter . | . . . . Parts Self-Destructed . | . . . . Prevented . | . . . . Parts Restored . | . . . . Kills | -11 -10 -9 -8 ------- Run | Yrd Mat Mat Mat Combat Hostiles Destroyed 24 | . 8 11 5 Guns 20 | . 8 11 1 AOE 4 | . . . 4 Classes Destroyed 11 | 3 2 5 1 Worker 6 | 2 . . 4 Builder 3 | . . 2 1 Tunneler 8 | 7 1 . . Hauler 3 | . . 2 1 Recycler 3 | 1 . 1 1 Operator 1 | . . 1 . Watcher 3 | . . 2 1 Swarmer 9 | . 3 4 2 Grunt 6 | . 5 . 1 Sentry 8 | . . 7 1 Hunter 1 | . . . 1 Best Kill Streak 8 | 3 4 5 8 Combat Bots Only 5 | . 3 5 3 Max Kills in Single Turn 2 | 1 1 1 2 Gunslinging . | . . . . Exploded 1 | . . . 1 Melee . | . . . . Uniques/NPCs Destroyed . | . . . . Combat | -11 -10 -9 -8 -------- Run | Yrd Mat Mat Mat Hostile Shots Fired 160 | . 45 74 41 Missed 44 | . 10 20 14 Hits 116 | . 35 54 27 Projectile 116 | . 35 54 27 AOE 1 | . . 1 . Critical Strikes 8 | . 1 4 3 Damage Taken 1760 | . 379 645 736 Core 344 | . 101 94 149 Absorbed by Shields 210 | . . 158 52 Core Remaining (%) 78 | 100 59 76 . Volleys Fired 133 | 32 35 48 18 Largest 3 | 2 2 2 3 Hottest 100 | 40 100 100 78 Shots Fired 263 | 64 66 94 39 Gun 246 | 64 62 92 28 Cannon . | . . . . Launcher 11 | . . . 11 Special 6 | . 4 2 . Kinetic 246 | 64 62 92 28 Thermal 6 | . 4 2 . Explosive 11 | . . . 11 Electromagnetic . | . . . . Robot Hit Streak 15 | 11 7 15 8 Robot Miss Streak 5 | 3 4 5 2 Penetration Max . | . . . . Secondary Targets 3 | . 2 1 . Max Gunslinging Chain 1 | . 1 1 . Shots Hit Robots 177 | 36 49 80 12 Core Hits 93 | 17 19 34 23 Critical Kills 1 | . . 1 . Critical Parts Destroyed 2 | . . 2 . Critical Strikes 3 | . . 3 . Destroy 3 | . . 3 . Melee Attacks 17 | . 9 6 2 Impact . | . . . . Slashing . | . . . . Piercing . | . . . . Sneak Attacks 13 | . 8 4 1 Combat Hostiles . | . . . . Follow-up Attacks . | . . . . Damage Inflicted 2565 | 319 342 1059 845 Guns 1983 | 319 342 1059 263 Cannons . | . . . . Explosions 582 | . . . 582 Melee . | . . . . Ramming . | . . . . Kinetic 1983 | 319 342 1059 263 Thermal . | . . . . Explosive 582 | . . . 582 Electromagnetic . | . . . . Impact . | . . . . Slashing . | . . . . Piercing . | . . . . Highest Corruption 1 | . . 1 . Average Corruption 1 | . . 1 . Corruption Purged . | . . . . Corruption Blocked . | . . . . Effects 6 | . . 6 . Matter Fused 1 | . . 1 . Heat Flow Errors 2 | . . 2 . Parts Fused 1 | . . 1 . Data Loss (minor) 2 | . . 2 . Overload Shots . | . . . . Overflow Damage 4 | . . . 4 Projectiles . | . . . . Explosions 4 | . . . 4 Melee . | . . . . Knockbacks . | . . . . Impact . | . . . . Kinetic . | . . . . Secondary . | . . . . Self-Inflicted Damage 64 | . . . 64 Shots 2 | . . . 2 Rammed . | . . . . Targets Rammed . | . . . . Kicked . | . . . . Crushed . | . . . . Highest Temperature 189 | . 20 189 102 Average Temperature 23 | . 9 23 39 Received Heat Transfer 434 | . 168 188 78 Siege Activations . | . . . . Martial Activations . | . . . . Shielding Activations . | . . . . Robots Disrupted . | . . . . Combat Hostiles . | . . . . Robots Corrupted . | . . . . Combat Hostiles . | . . . . Parts Fried . | . . . . Impact Corruptions . | . . . . Robots Melted . | . . . . Combat Hostiles . | . . . . Parts Melted . | . . . . Heat Transferred . | . . . . Parts Sabotaged . | . . . . Parts Stolen . | . . . . Parts Stripped . | . . . . Power Chain Reactions . | . . . . Alert | -11 -10 -9 -8 ------- Run | Yrd Mat Mat Mat Maximum Alert Level . | . . . . Low Security (%) 100 | 100 100 100 100 Level 1 . | . . . . Level 2 . | . . . . Level 3 . | . . . . Level 4 . | . . . . Level 5 . | . . . . High Security . | . . . . Max Security . | . . . . Peak Influence 187 | 10 155 100 187 Initial 56 | . . 56 14 Average 44 | 2 49 46 82 Influence Increases 936 | 50 259 380 247 Destroy 0b10 Robot/C 480 | . 160 220 100 Destroy 0b10 Robot/NC 135 | 50 5 40 40 Destroy Leader 162 | . 40 88 34 Successful Hack 34 | . 5 29 . Disable Machine 30 | . . . 30 Destroy Structure 50 | . 4 3 43 Lose Combat Pursuer 45 | . 45 . . Influence Decreases 799 | 50 124 479 146 Entered New Map 101 | . . 79 22 Time Decay 608 | 50 104 390 64 Lost Part 90 | . 20 10 60 Squads Dispatched 5 | . 3 . 2 Investigation 2 | . 2 . . Extermination . | . . . . Reinforcement 2 | . 1 . 1 Assault . | . . . . Garrison 1 | . . . 1 Intercept . | . . . . Searches Triggered . | . . . . Construction Impeded . | . . . . Haulers Reinforced . | . . . . Active Scanning Responses . | . . . . Cargo Convoy Interrupts . | . . . . Stealth | -11 -10 -9 -8 --------- Run | Yrd Mat Mat Mat Distress Signals 4 | . . 2 2 Communications Jammed . | . . . . Distress Signals . | . . . . Times Spotted 39 | . 12 17 10 Peak Tracking Total 5 | . 4 5 4 Tactical Retreats 2 | . 2 . . Traps | -11 -10 -9 -8 ------- Run | Yrd Mat Mat Mat Traps Triggered 2 | . 2 . . Indirectly . | . . . . Trap Hack Attempts . | . . . . Triggered . | . . . . Disarmed . | . . . . Reprogrammed . | . . . . Reused . | . . . . Traps Extracted . | . . . . Installed . | . . . . Triggered . | . . . . Machines | -11 -10 -9 -8 ---------- Run | Yrd Mat Mat Mat Machines Disabled 2 | . . . 2 Max in Single Turn 1 | . . . 1 Machines Repaired . | . . . . Machines Dismantled . | . . . . Machines Sabotaged . | . . . . Overloaded Fab Kills . | . . . . Hacking | -11 -10 -9 -8 --------- Run | Yrd Mat Mat Mat Machines Accessed 9 | . 2 7 . Terminals 8 | . 2 6 . Fabricators . | . . . . Repair Stations . | . . . . Recycling Units 1 | . . 1 . Scanalyzers . | . . . . Garrison Access . | . . . . Total Hacks 30 | . 8 22 . Successful 12 | . 3 9 . Failed 18 | . 5 13 . Catastrophic 1 | . . 1 . Database Lockouts . | . . . . Manual 13 | . 5 8 . Terminals 26 | . 8 18 . Fabricators . | . . . . Repair Stations . | . . . . Recycling Units 4 | . . 4 . Scanalyzers . | . . . . Garrison Access . | . . . . Terminal Hacks 5 | . 1 4 . Prototype ID Bank 1 | . 1 . . Emergency Access Points 1 | . . 1 . Alert Level 1 | . . 1 . Patrol Status 1 | . . 1 . Zone Layout 1 | . . 1 . Fabricator Hacks . | . . . . Repair Station Hacks . | . . . . Recycling Unit Hacks 2 | . . 2 . Report Inventory 1 | . . 1 . Retrieve Components 1 | . . 1 . Scanalyzer . | . . . . Garrison Access Hacks . | . . . . Unauthorized Hacks 5 | . 2 3 . Terminals 5 | . 2 3 . Botnet 5 | . 2 3 . Fabricators . | . . . . Repair Stations . | . . . . Recycling Units . | . . . . Scanalyzers . | . . . . Garrison Access . | . . . . Data Cores Recovered 1 | . . 1 . Used . | . . . . Hacking Detections 8 | . 1 7 . Full Trace Events . | . . . . Feedback Events . | . . . . Feedback Blocked . | . . . . Robot Schematics Acquired . | . . . . Robots Built . | . . . . Authchips . | . . . . Time . | . . . . Total Robot Build Rating . | . . . . Part Schematics Acquired . | . . . . Parts Built . | . . . . Authchips . | . . . . Time . | . . . . Total Part Build Rating . | . . . . Part Studies Acquired . | . . . . Parts Repaired . | . . . . Time . | . . . . Parts Recycled . | . . . . Recycled Matter . | . . . . Retrieved Matter . | . . . . Retrieved Components 3 | . . 3 . Parts Scanalyzed . | . . . . Part Schematics Acquired . | . . . . Parts Damaged . | . . . . Bothacking | -11 -10 -9 -8 ------------ Run | Yrd Mat Mat Mat Used RIF Installer . | . . . . Robots Hacked 8 | . 4 4 . Non-combat 6 | . 3 3 . Combat 2 | . 1 1 . Robot Hacks Applied 11 | . 7 4 . parse_system 6 | . 3 3 . no_distress 4 | . 3 1 . find_recycling 1 | . 1 . . Relay Couplers Released . | . . . . Fabnet Peak Effective % . | . . . . Robots Rewired . | . . . . Allies Hacked . | . . . . Hacks Repelled . | . . . . Allies | -11 -10 -9 -8 -------- Run | Yrd Mat Mat Mat Total Allies . | . . . . Largest Group . | . . . . Highest-Rated Group . | . . . . Highest-Rated Ally . | . . . . Total Orders . | . . . . Ally Attacks . | . . . . Total Damage . | . . . . Kills . | . . . . Allies Corrupted . | . . . . Allies Melted . | . . . . Intel | -11 -10 -9 -8 ------- Run | Yrd Mat Mat Mat Active Infowar (turns) 817 | 152 402 263 . Terrain 478 | 152 243 83 . Seismic 422 | . 159 263 . Robot Analysis Total . | . . . . Derelict Logs Recovered . | . . . . Drone Launches . | . . . . Drone Recoveries . | . . . . Exploration | -11 -10 -9 -8 ------------- Run | Yrd Mat Mat Mat Turns Passed 1849 | 245 429 1022 153 Spaces Moved 784 | 76 218 441 49 Core 4 | . . . 4 Treads . | . . . . Legs 780 | 76 218 441 45 Wheels . | . . . . Hover . | . . . . Flight . | . . . . Fastest Speed 120 | 120 120 120 190 Average Speed 158 | 120 120 180 194 Slowest Speed 260 | 120 120 260 250 Overloaded Moves . | . . . . Propulsion Burnouts . | . . . . Robots Hopped . | . . . . Potential Cave-ins . | . . . . Cave-ins Triggered . | . . . . Exploration Rate (%) 25 | 6 36 47 11 Regions Visited 3 Branch Regions . Pre-discovered Areas . | . . . . Known Exits Taken . | . . . . Unknown Exits Taken 3 | 1 1 1 . Scrap Searched . | . . . . Spaces Dug 6 | . 4 2 . Terrain Destroyed 48 | . 4 2 42 Melee . | . . . . Projectile 6 | . 4 2 . AOE 42 | . . . 42 Terrain Rammed . | . . . . Walls Destroyed . | . . . . Machines Disabled . | . . . . Actions | -11 -10 -9 -8 --------- Run | Yrd Mat Mat Mat Total 1148 | 178 315 580 75 Wait 116 | 63 27 26 . Move 781 | 75 217 440 49 Hop . | . . . . Pick Up 23 | 4 5 12 2 Fast Attach 6 | 1 1 4 . Attach 6 | . 1 3 2 Detach 1 | . . 1 . Swap 37 | 1 14 20 2 Drop 28 | 2 6 20 . Fire 133 | 32 35 48 18 Melee 17 | . 9 6 2 Ram . | . . . . Kick . | . . . . Crush . | . . . . Escape Stasis . | . . . . Rewire . | . . . . Trap . | . . . . Miscellaneous . | . . . . Route ------- -11/Scrapyard -10/Materials -9/Materials (discovered 3 exits: [*Mat] / [*Min] / [*Sto]) -8/Materials History --------- Turn | Location | Event 21 | -11/Scrapyard | Discovered new exit (range 3) 246 | -11/Scrapyard | Entered Materials 304 | -10/Materials | Build established: Mutant 665 | -10/Materials | Discovered new exit (range 9) 675 | -10/Materials | Entered another Materials area 675 | -9/Materials | Evolved 2 slots: Utility x2 736 | -9/Materials | Discovered new exit (range 15) 1208 | -9/Materials | Discovered new exit (range 8) 1484 | -9/Materials | Discovered new exit (range 14) 1697 | -9/Materials | Entered another Materials area 1697 | -8/Materials | Evolved 2 slots: Propulsion x1, Weapon x1 1756 | -8/Materials | Garrison activated, responded to threat 1850 | -8/Materials | Self-destructed Last Messages --------------- 01835_ U-05 Engineer lays Concrete. 01835_ Autogun blasted off. 01836_ U-05 Engineer destroyed. 01837_ R-06 Scavenger collects Imp. Aluminum Leg. 01839_ The unstable cave ceiling collapses. 01839_ R-06 Scavenger collects Particle Gun. 01840_ R-06 Scavenger collects Autogun. 01843_ Knocked back. 01843_ R-06 Scavenger collects Aluminum Leg. 01843_ Acquired 1 matter. 01843_ R-06 Scavenger collects Lgt. Ion Engine. 01845_ Acquired 12 matter. 01846_ R-06 Scavenger collects Adv. Beam Cannon. 01847_ R-06 Scavenger collects Wheel. 01848_ Acquired 41 matter. 01848_ Hpw. Shotgun destroyed. 01848_ Critical hit (Burn: +37). 01850_ The unstable cave ceiling collapses. 01850_ Knocked back. 01850_ R-06 Scavenger collects Wheel. Map ----- +----------------------------------------------------+ | ?????????????????????????????????????????????????? | | ?????????????????????????????????????????????????? | | ?????????????????????????????????????????????????? | | ?????????????????????????????????????????????????? | | ?????????????????????????????????????????????????? | | ?????????????????????????????????????????????????? | | ?????????????????????????????????????????????????? | | ?????????????????????????????????????????????????? | | ?????????????????????????????????????????????????? | | ?????????????????????????????????????????????????? | | ?????????????????????????????????????????????????? | | ?????????????????????????????????????????????????? | | ?????????????????????????????????????????????????? | | ?????????????????????????????????????????????????? | | ???????????????????????? ????????????????????????? | | ?????????????????????###+#???????????????????????? | | ?????????????????????#! ???????????????????????? | | ?????????????????????# """?????????????????????? | | ?????????????????????# ! """#????????????????????? | | ??????????# ?????????# """#????????????????????? | | ?????????## ????????# #????????????????????? | | ?????????# ??????# #????????????????????? | | ?????????#% ##?????########????????????????????? | | ????????## r [= ###### #????????????????????? | | ???????? * *[% !* #????????????????????? | | ???????? ][]H[%== @%;#????????????????????? | | ????????? != ! % r% #????????????????????? | | ?????????# ;;#;! # ########????????????? | | ??????????## ## ?####|# ; ; #????????????? | | ?????????????????# # #### #????????????? | | ?????????????????# # #??# """ ##???????????? | | ?????????????????# + #??#% " #???????????? | | ?????????????????# # #??# % #???????????? | | ?????????????????# # g #??# #???????????? | | ?????????????????# ?# ug#######+ ####????????? | | ?????????????????# =!?# % #????????? | | ?????????????????# =!?# #????????? | | ?????????????????# !??# #????????? | | ?????????????????###??# ####### # #????????? | | ??????????????????????# # ## #????????? | | ??????????????????????# # """ # #????????? | | ??????????????????????# # "G" ## ##???????? | | ?????????????????????? # " " # ########? | | ????????????????????? # # #? | | ???????????????????? # + " #? | | ??????????????????? ## """ # #? | | ??????????????????# ?? """ # ###+####? | | ??????????????????#!!!!!!?? ####### ??? | | ???????????????????!!!!!!???########?????# ? | | ??????????????????????###????????????????# | +----------------------------------------------------+ Best States ------------- Heat Dissipation 42 Energy Generation 12 Energy Capacity 265 Matter Stores 300 Matter Capacity 300 Sight Range 16 Terrain Scan Range 16 Terrain Scan Density 10 Armor Coverage 600 Evasion (%) 55 Item Schematics ----------------- None Robot Schematics ------------------ None Fabricated ------------ Nothing Repaired ---------- Nothing Studied --------- None Alien Tech Used ----------------- None Achievements -------------- Junior Dev Not Today, Chutes Resistances Are Futile Challenges ------------ None Game ------ Seed ShieldExpertKatana Manual? 0 Play Time 00:25:47 Cumulative 144.7 hours Start 2025.12.15 @ 18:32:36 End 2025.12.16 @ 14:12:52 Sessions 3 Manual Loads 0 Difficulty Rogue Special Mode None Game No. 247 Rogue 243 Adventurer 0 Explorer 4 Win Type - Total 0 Types 0/0/0/0/0/0/0/0/0/0 Lore% 18 Gallery% 39 Achievement% 22 Wizard Run 0 Options --------- Layout 1 ASCII 0 Keyboard 1 Movement Arrows Keybinds 0 Fullscreen 1 Font 32/SmallcapsGlow Map View 130x35 Zoom Use 0% Tactical HUD 1 Map Filters NONE Filters NONE Steam 1 RUN: 266b9454-62cd-4689-981e-b9d7268a7aaf